bitfinex-derivatives/quotes_SOLF0:USTF0_20250505
["timestamp","ask_amount","ask_price","bid_price","bid_amount"]
[1746464954235,31.4425,144.9,144.82,24.54]
[1746464954433,31.4425,144.9,144.83,2.003]
[1746464954627,31.4425,144.9,144.87,6.9035]
[1746464955128,24.54,144.9,144.83,2.003]
[1746464955630,6.9033,144.88,144.83,2.003]
[1746464955831,6.9033,144.88,144.85,6.9044]
[1746464958234,6.9033,144.88,144.86,6.9042]
[1746464958736,6.9033,144.88,144.85,6.9045]
[1746464959936,6.9038,144.87,144.82,24.54]
[1746464960136,24.54,144.9,144.82,24.54]
[1746464961038,6.903,144.89,144.86,6.9042]
[1746464961732,31.4425,144.9,144.87,6.9035]
[1746464962132,15.67907049,144.92,144.82,24.54]
[1746464962431,6.9024,144.9,144.87,6.9033]
[1746464963039,6.9029,144.89,144.87,6.9033]
[1746464963240,6.9029,144.89,144.86,6.904]
[1746464963438,24.54,144.91,144.82,24.54]
[1746464964239,6.9041,144.87,144.84,6.9049]
[1746464964441,24.54,144.91,144.84,6.9049]
[1746464964741,24.54,144.91,144.82,24.54]
[1746464965042,6.9045,144.86,144.83,6.9053]
[1746464966841,6.9047,144.85,144.83,6.9053]
[1746464967836,6.9047,144.85,144.82,6.9059]
[1746464970736,6.9047,144.85,144.81,1.0]
[1746464970737,24.48,144.87,144.83,6.9055]
[1746464971046,6.9044,144.86,144.81,1.0]
[1746464971944,6.9044,144.86,144.83,6.9052]
[1746464972336,6.9048,144.85,144.83,6.9052]
[1746464973044,6.9044,144.86,144.83,6.9052]
[1746464973240,24.48,144.87,144.82,6.9059]
[1746464973638,6.9049,144.85,144.82,6.9059]
[1746464974242,6.9049,144.85,144.83,6.9056]
[1746464974847,6.9049,144.85,144.82,6.9059]
[1746464975039,6.9053,144.84,144.82,6.9059]
[1746464975237,6.9053,144.84,144.81,1.0]
[1746464976341,6.9061,144.82,144.81,1.0]
[1746464976645,36.11717049,144.83,144.74,3.9714]
[1746464976844,36.11717049,144.83,144.74,10.8812]
[1746464977049,11.63717049,144.83,144.74,3.9714]
[1746464977246,24.48,144.83,144.74,3.9714]
[1746464977449,24.48,144.83,144.77,6.9082]
[1746464977747,6.9064,144.82,144.74,3.9714]
[1746464978348,6.9067,144.81,144.74,3.9714]
[1746464978751,6.9071,144.8,144.77,6.9083]
[1746464979150,24.48,144.83,144.74,3.9714]
[1746464979350,6.908,144.79,144.76,6.9087]
[1746464980253,6.908,144.79,144.77,6.9085]
[1746464980951,6.9081,144.78,144.76,6.9088]
[1746464981955,6.9078,144.79,144.76,6.9088]
[1746464982452,6.9067,144.81,144.77,24.48]
[1746464982758,24.48,144.85,144.77,24.48]
[1746464982957,24.48,144.85,144.8,6.9069]
[1746464983359,24.48,144.85,144.77,24.48]
[1746464983860,6.9052,144.84,144.77,24.48]
[1746464984058,36.11717049,144.87,144.8,6.9066]
[1746464984562,6.9059,144.83,144.8,6.9066]
[1746464985271,6.9059,144.83,144.81,6.9065]
[1746464986361,6.9061,144.82,144.8,6.9069]
[1746464989462,6.9058,144.83,144.81,6.9066]
[1746464989867,6.9058,144.83,144.77,24.48]
[1746464990067,6.9058,144.83,144.8,6.9066]
[1746464991970,6.9061,144.82,144.8,6.9066]
[1746464993168,6.9059,144.83,144.81,6.9065]
[1746464993370,24.48,144.87,144.77,24.48]
[1746464993670,6.9054,144.84,144.77,24.48]
[1746464994869,6.9054,144.84,144.82,6.9061]
[1746464998274,6.9049,144.85,144.83,6.9056]
[1746464998473,4.201,144.9,144.81,24.38]
[1746464998671,4.201,144.9,144.82,17.78507049]
[1746464998872,6.9035,144.88,144.86,6.904]
[1746464999075,24.38,144.91,144.82,17.78507049]
[1746465000081,6.9028,144.89,144.87,6.9034]
[1746465001179,24.38,144.91,144.88,6.9031]
[1746465001778,6.9026,144.9,144.88,6.9031]
[1746465002277,6.9028,144.89,144.87,6.9035]
[1746465002879,6.9028,144.89,144.86,6.9041]
[1746465003075,6.9028,144.89,144.85,24.38]
[1746465003379,6.9028,144.89,144.86,6.9041]
[1746465004178,6.9028,144.89,144.87,6.9036]
[1746465004379,6.9025,144.9,144.85,24.38]
[1746465004981,6.9025,144.9,144.88,6.9029]
[1746465005579,6.9025,144.9,144.87,6.9035]
[1746465005779,6.9025,144.9,144.85,24.38]
[1746465006380,6.9021,144.91,144.85,24.38]
[1746465006573,28.5083,144.94,144.85,24.38]
[1746465007281,6.9016,144.92,144.89,6.9025]
[1746465007669,6.9016,144.92,144.85,24.38]
[1746465008381,6.9016,144.92,144.9,6.9021]
[1746465009080,6.9009,144.93,144.91,6.9018]
[1746465009975,31.2806,144.94,144.91,6.9018]
[1746465010182,24.38,144.94,144.91,6.9018]
[1746465010478,2.1237,144.96,144.92,6.9013]
[1746465010684,2.1237,144.96,144.89,24.38]
[1746465011080,6.9007,144.94,144.89,24.38]
[1746465011282,24.38,144.97,144.89,24.38]
[1746465011671,6.8997,144.96,144.93,6.9005]
[1746465011879,6.8997,144.96,144.89,24.38]
[1746465012075,6.8997,144.96,144.9,4.1226]
[1746465012279,6.8997,144.96,144.94,6.9002]
[1746465013781,6.8987,144.98,144.9,4.1226]
[1746465014086,24.38,145.01,144.91,11.63717049]
[1746465014287,6.898,144.99,144.96,6.8991]
[1746465015890,6.898,144.99,144.97,6.8988]
[1746465016791,6.8977,145.0,144.97,6.8988]
[1746465017593,6.8977,145.0,144.98,6.8984]
[1746465017791,31.2773,145.01,144.98,6.8984]
[1746465017989,24.38,145.01,144.98,6.8984]
[1746465018794,6.8976,145.0,144.98,6.8984]
[1746465019292,31.2773,145.01,144.94,24.38]
[1746465019992,31.2773,145.01,144.98,6.8982]
[1746465020490,6.8976,145.0,144.98,6.8982]
[1746465021084,6.8976,145.0,144.97,6.8987]
[1746465021387,6.898,144.99,144.97,6.8987]
[1746465021795,31.2775,145.01,144.98,6.8985]
[1746465022197,24.38,145.01,144.98,6.8985]
[1746465022397,6.8976,145.0,144.97,6.8987]
[1746465023295,6.8976,145.0,144.98,6.8984]
[1746465024198,6.8976,145.0,144.97,6.8987]
[1746465024699,6.8976,145.0,144.98,1.0]
[1746465025099,6.8976,145.0,144.98,7.8984]
[1746465026099,6.898,144.99,144.98,1.0]
[1746465026901,2.1122,145.02,144.98,1.0]
[1746465027398,2.1122,145.02,144.98,7.8982]
[1746465027699,2.1122,145.02,144.98,1.0]
[1746465028000,6.8978,145.0,144.98,1.0]
[1746465028192,2.1122,145.02,144.98,1.0]
[1746465028597,6.8978,145.0,144.98,1.0]
[1746465029701,6.898,144.99,144.98,1.0]
[1746465029996,2.1122,145.02,144.98,1.0]
[1746465030201,6.8973,145.01,144.98,7.8984]
[1746465030697,6.8978,145.0,144.98,1.0]
[1746465030889,24.34,145.03,144.98,1.0]
[1746465031089,4.72661952,145.02,144.98,1.0]
[1746465031289,11.62432231,145.01,144.98,7.8984]
[1746465031489,24.34,145.03,144.98,1.0]
[1746465032003,6.8978,145.0,144.98,1.0]
[1746465032700,4.0771,145.05,144.98,1.0]
[1746465032903,1.9735,145.06,144.99,24.34]
[1746465033202,570.88,145.09,145.0,11.63717049]
[1746465033505,570.88,145.09,145.03,6.896]
[1746465033900,6.8938,145.08,145.04,6.8955]
[1746465034707,6.8945,145.07,145.03,6.896]
[1746465036304,6.8945,145.07,145.04,6.8955]
[1746465036706,6.8945,145.07,145.03,6.8959]
[1746465037199,6.8945,145.07,145.04,6.8955]
[1746465037703,24.34,145.09,144.99,42.02547049]
[1746465037904,24.34,145.09,145.05,6.8948]
[1746465038101,31.2336,145.09,144.99,42.02547049]
[1746465039408,24.34,145.09,145.02,11.63717049]
[1746465039705,2.1356,145.11,145.03,24.34]
[1746465039907,6.8936,145.09,145.06,6.8945]
[1746465040906,6.8936,145.09,145.07,6.8941]
[1746465041307,6.893,145.1,145.07,6.8941]
[1746465041508,2.1356,145.11,145.06,6.8945]
[1746465041808,6.8936,145.09,145.06,6.8945]
[1746465042009,2.1356,145.11,145.03,24.34]
[1746465042199,2.1356,145.11,145.05,6.8949]
[1746465042810,6.8943,145.07,145.05,6.8949]
[1746465043410,6.8952,145.05,145.03,24.34]
[1746465043907,6.8959,145.04,145.01,6.8968]
[1746465050019,24.34,145.08,145.0,24.34]
[1746465050210,4.2035,145.07,144.98,1.0]
[1746465050517,6.8968,145.02,144.98,1.0]
[1746465051019,2.1086,145.06,144.98,1.0]
[1746465051519,6.8955,145.05,145.02,6.8962]
[1746465052724,6.8957,145.04,145.02,6.8962]
[1746465053016,6.8957,145.04,145.01,6.8968]
[1746465053721,6.8954,145.05,145.02,6.8966]
[1746465054421,6.8954,145.05,145.03,6.896]
[1746465054718,4.2035,145.07,144.99,11.63717049]
[1746465054923,24.34,145.08,145.04,6.8954]
[1746465055224,6.895,145.06,145.01,24.62]
[1746465055528,24.34,145.08,145.01,24.62]
[1746465055922,6.8956,145.05,145.01,24.62]
[1746465056121,6.8956,145.05,145.02,6.8965]
[1746465056825,6.8957,145.04,145.02,6.8965]
[1746465057529,6.8957,145.04,145.01,31.5168]
[1746465058126,6.8962,145.03,145.01,24.62]
[1746465058329,24.34,145.08,145.01,24.62]
[1746465058529,24.34,145.08,145.0,6.8973]
[1746465058729,6.8965,145.03,145.0,6.8973]
[1746465059028,6.8965,145.03,145.01,6.8969]
[1746465060531,6.8959,145.04,145.02,6.8965]
[1746465060730,24.34,145.08,144.98,25.62]
[1746465061024,6.8954,145.05,145.02,6.8962]
[1746465061231,24.34,145.08,145.02,6.8962]
[1746465061629,6.8959,145.04,145.02,6.8962]
[1746465061824,24.34,145.08,144.98,25.62]
[1746465062228,6.896,145.04,145.01,6.8968]
[1746465062427,24.34,145.08,145.01,6.8968]
[1746465063833,6.8962,145.03,145.01,6.8968]
[1746465064433,6.8962,145.03,145.0,6.8974]
[1746465065035,6.8968,145.02,145.0,6.8974]
[1746465065831,24.34,145.08,144.99,6.8978]
[1746465066030,38.1277,145.08,144.98,25.62]
[1746465066333,49.76487049,145.08,144.98,25.62]
[1746465066528,6.8974,145.01,144.98,32.5183]
[1746465067535,6.8975,145.0,144.98,32.5183]
[1746465067728,6.8975,145.0,144.98,25.62]
[1746465067931,24.62,145.04,144.98,25.62]
[1746465068332,24.62,145.04,144.98,1.0]
[1746465068634,6.8978,145.0,144.98,1.0]
[1746465069833,6.8978,145.0,144.98,7.8985]
[1746465071736,6.8978,145.0,144.98,1.0]
[1746465072840,6.898,144.99,144.98,1.0]
[1746465073740,24.62,145.0,144.92,24.62]
[1746465074640,24.62,145.0,144.93,6.9007]
[1746465075140,6.8992,144.97,144.94,6.9003]
[1746465075345,24.62,145.0,144.92,24.62]
[1746465075536,6.3533,145.03,144.92,24.62]
[1746465075737,6.8976,145.0,144.97,6.8987]
[1746465075936,24.62,145.02,144.93,6.1426]
[1746465076241,6.8982,144.99,144.96,6.899]
[1746465076634,6.8982,144.99,144.93,6.1426]
[1746465076838,24.62,145.02,144.93,6.1426]
[1746465077235,24.62,145.02,144.94,6.9002]
[1746465077443,36.25717049,145.02,144.93,1.9957]
[1746465077738,36.25717049,145.02,144.93,6.9006]
[1746465078344,6.8997,144.96,144.93,6.9006]
[1746465078843,6.8997,144.96,144.94,6.9003]
[1746465079042,36.25717049,145.02,144.92,24.62]
[1746465079441,6.8996,144.96,144.94,6.9003]
[1746465080035,6.9,144.95,144.92,24.62]
[1746465080538,6.9007,144.94,144.91,6.9018]
[1746465080840,24.62,144.97,144.89,111.95938947]
[1746465081043,24.64,144.97,144.91,6.9018]
[1746465081342,24.64,144.97,144.89,24.62]
[1746465081944,6.9011,144.93,144.89,24.62]
[1746465082242,24.64,144.97,144.89,24.62]
[1746465083139,6.9001,144.95,144.92,6.901]
[1746465085046,6.9005,144.94,144.92,6.901]
[1746465085246,24.64,144.97,144.92,6.901]
[1746465086045,6.9004,144.95,144.92,6.901]
[1746465087441,6.9004,144.94,144.91,6.9016]
[1746465087943,24.64,144.97,144.89,24.62]
[1746465088146,6.9002,144.95,144.92,6.9011]
[1746465088347,6.9002,144.95,144.92,7.9011]
[1746465089046,6.9005,144.94,144.92,7.9011]
[1746465089843,6.9002,144.95,144.92,7.9011]
[1746465090441,6.9004,144.95,144.92,7.9011]
[1746465091449,6.9004,144.94,144.92,7.9011]
[1746465091648,24.64,144.97,144.92,7.9011]
[1746465092050,6.9002,144.95,144.92,7.9011]
[1746465092549,6.8996,144.96,144.92,1.0]
[1746465092751,24.64,144.97,144.92,1.0]
[1746465093050,24.56,145.0,144.92,1.0]
[1746465093854,6.8997,144.96,144.94,6.9002]
[1746465094548,6.8999,144.95,144.93,6.9007]
[1746465095155,6.8997,144.96,144.94,6.9004]
[1746465096652,6.8997,144.96,144.93,6.9006]
[1746465097654,6.8997,144.96,144.94,6.9003]
[1746465099957,6.8997,144.96,144.93,6.9008]
[1746465100459,6.9,144.95,144.93,6.9008]
[1746465100758,6.9,144.95,144.92,7.9011]
[1746465101158,6.9,144.95,144.93,6.9008]
[1746465101958,6.9,144.95,144.92,7.9011]
[1746465103159,24.56,144.98,144.92,7.9011]
[1746465103757,6.9003,144.95,144.92,7.9011]
[1746465104559,24.56,144.98,144.92,7.9011]
[1746465105959,6.9002,144.95,144.92,7.9011]
[1746465106160,24.56,144.98,144.93,6.9009]
[1746465107456,24.56,144.98,144.92,7.9011]
[1746465107659,24.56,144.98,144.92,1.0]
[1746465107959,6.9006,144.94,144.92,1.0]
[1746465108862,6.9009,144.93,144.92,1.0]
[1746465124665,6.9035,144.88,144.84,28.4601]
[1746465124863,6.9035,144.88,144.85,6.9044]
[1746465125059,2.1591,144.92,144.84,28.4601]
[1746465125265,2.1591,144.92,144.84,24.42]
[1746465125466,2.1563,144.91,144.84,24.42]
[1746465125667,24.42,144.9,144.81,26.5456]
[1746465125874,36.05717049,144.9,144.81,26.5456]
[1746465126576,6.9049,144.85,144.82,6.9061]
[1746465127169,36.05717049,144.9,144.81,24.42]
[1746465127367,11.63717049,144.87,144.78,24.42]
[1746465127570,24.42,144.86,144.78,24.42]
[1746465128369,6.9059,144.83,144.8,6.9071]
[1746465129378,6.9054,144.84,144.8,6.9071]
[1746465129577,6.9054,144.84,144.81,6.9066]
[1746465130079,6.9054,144.84,144.8,6.9068]
[1746465130281,6.9054,144.84,144.78,24.42]
[1746465130574,24.42,144.86,144.78,24.42]
[1746465130575,6.9049,144.85,144.78,24.42]
[1746465130779,6.9049,144.85,144.82,6.9058]
[1746465131180,24.42,144.86,144.82,6.9058]
[1746465131181,6.9052,144.84,144.82,6.9058]
[1746465136386,6.9048,144.85,144.82,6.9058]
[1746465137085,6.9043,144.86,144.83,6.9054]
[1746465137288,6.9043,144.86,144.78,36.05717049]
[1746465137585,6.9043,144.86,144.83,6.9053]
[1746465137884,6.9049,144.85,144.78,36.05717049]
[1746465138185,6.9049,144.85,144.82,6.9059]
[1746465138387,24.44,144.88,144.78,36.05717049]
[1746465138388,6.906,144.83,144.78,36.05717049]
[1746465138685,6.906,144.83,144.8,6.9067]
[1746465138984,6.906,144.83,144.78,36.05717049]
[1746465139183,6.9054,144.84,144.81,6.9065]
[1746465139383,24.44,144.88,144.81,6.9065]
[1746465139788,6.9057,144.83,144.8,6.9069]
[1746465140386,6.9057,144.83,144.81,6.9065]
[1746465140588,6.9054,144.84,144.81,6.9065]
[1746465140881,24.44,144.88,144.82,6.9057]
[1746465141083,6.9052,144.84,144.78,36.05717049]
[1746465142187,6.9052,144.84,144.82,6.9058]
[1746465143087,6.9052,144.84,144.81,6.9062]
[1746465143288,6.9056,144.83,144.81,6.9062]
[1746465144486,6.9061,144.82,144.8,6.9069]
[1746465144687,38.2469,144.88,144.78,24.42]
[1746465144885,49.88407049,144.88,144.78,24.42]
[1746465145186,6.9059,144.83,144.78,24.42]
[1746465145790,6.9054,144.84,144.78,24.42]
[1746465146288,36.07717049,144.88,144.81,6.9062]
[1746465146786,6.9054,144.84,144.82,6.9061]
[1746465147490,6.9054,144.84,144.81,6.9063]
[1746465147684,6.9057,144.83,144.81,6.9063]
[1746465147985,36.07717049,144.88,144.81,6.9065]
[1746465148286,6.9056,144.83,144.81,6.9065]
[1746465149987,36.07717049,144.88,144.8,6.9068]
[1746465150288,36.07717049,144.88,144.78,24.42]
[1746465150488,4.1272,144.87,144.78,24.42]
[1746465150787,4.1272,144.87,144.76,4.1246]
[1746465150986,11.63717049,144.85,144.76,4.1246]
[1746465151194,24.4,144.84,144.81,1.0]
[1746465151493,6.9061,144.82,144.81,1.0]
[1746465163201,24.4,144.84,144.75,26.4769]
[1746465163409,11.63717049,144.82,144.75,24.4]
[1746465163601,11.63717049,144.82,144.72,36.03717049]
[1746465163800,6.9084,144.78,144.72,36.03717049]
[1746465164002,24.4,144.8,144.72,24.4]
[1746465164309,6.9102,144.74,144.71,8.985]
[1746465164704,11.63717049,144.79,144.71,2.0739]
[1746465165007,6.9097,144.75,144.71,2.0739]
[1746465165503,6.9092,144.76,144.72,6.9106]
[1746465165710,6.9092,144.76,144.71,2.0739]
[1746465166809,6.9092,144.76,144.73,6.9102]
[1746465167107,6.9092,144.76,144.71,2.0739]
[1746465167712,6.9095,144.75,144.71,2.0739]
[1746465168710,6.9095,144.75,144.72,6.9108]
[1746465168912,6.91,144.74,144.72,6.9108]
[1746465169317,11.63717049,144.79,144.73,6.9103]
[1746465169813,11.63717049,144.79,144.72,6.9106]
[1746465170006,6.9096,144.75,144.72,6.9106]
[1746465170506,11.63717049,144.79,144.71,2.0739]
[1746465171011,11.63717049,144.79,144.73,6.9104]
[1746465171714,6.9092,144.76,144.73,6.9104]
[1746465171907,6.9092,144.76,144.74,6.9098]
[1746465172107,6.9092,144.76,144.71,2.0739]
[1746465172313,6.9092,144.76,144.73,6.9103]
[1746465172816,6.9087,144.77,144.71,2.0739]
[1746465173016,24.4,144.8,144.71,2.0739]
[1746465173517,6.9081,144.78,144.75,6.9093]
[1746465174118,6.9085,144.77,144.75,6.9093]
[1746465174307,6.9085,144.77,144.74,6.9097]
[1746465175220,6.9083,144.78,144.75,6.9094]
[1746465176629,24.4,144.8,144.72,11.63717049]
[1746465177229,6.909,144.76,144.73,6.91]
[1746465178229,6.9095,144.75,144.73,6.91]
[1746465178621,6.9095,144.75,144.72,6.9107]
[1746465179130,6.9104,144.73,144.71,8.9851]
[1746465179426,6.9104,144.73,144.71,2.0739]
[1746465179728,6.9104,144.73,144.71,8.985]
[1746465180023,24.4,144.8,144.71,2.0739]
[1746465180228,24.4,144.8,144.74,6.9098]
[1746465181125,6.9088,144.77,144.74,6.9098]
[1746465181429,24.4,144.8,144.74,24.4]
[1746465181626,6.9069,144.81,144.74,24.4]
[1746465181831,583.05717049,144.83,144.77,6.9083]
[1746465182230,6.9075,144.8,144.77,6.9083]
[1746465183434,583.05717049,144.83,144.76,6.9087]
[1746465183627,583.05717049,144.83,144.75,1.977]
[1746465184131,6.9078,144.79,144.76,6.9089]
[1746465184326,583.05717049,144.83,144.75,1.977]
[1746465184832,6.9081,144.78,144.75,1.977]
[1746465185233,583.05717049,144.83,144.75,1.977]
[1746465185432,6.9078,144.79,144.76,6.9089]
[1746465185833,6.9073,144.8,144.77,6.9085]
[1746465188937,6.9063,144.82,144.75,4.1261]
[1746465189438,24.4,144.85,144.75,4.1261]
[1746465190237,6.9069,144.81,144.78,6.9077]
[1746465191037,6.9069,144.81,144.79,6.9075]
[1746465194143,4.69274791,144.8,144.79,6.9075]
[1746465194342,6.9069,144.81,144.79,6.9075]
[1746465194536,4.69248278,144.8,144.79,6.9075]
[1746465194735,11.59958278,144.8,144.78,6.9078]
[1746465194937,6.9071,144.8,144.78,6.9078]
[1746465195137,24.4,144.85,144.75,4.1261]
[1746465195542,6.9061,144.82,144.79,6.9075]
[1746465196249,6.9061,144.82,144.8,6.907]
[1746465196539,24.4,144.85,144.78,24.4]
[1746465196746,24.4,144.85,144.81,6.9062]
[1746465197345,6.9053,144.84,144.81,6.9062]
[1746465197745,24.4,144.85,144.78,24.4]
[1746465197942,6.9064,144.82,144.78,24.4]
[1746465198241,6.9064,144.82,144.79,6.9071]
[1746465198441,6.9064,144.82,144.78,24.4]
[1746465199039,6.9064,144.82,144.8,6.9067]
[1746465199244,6.9057,144.83,144.78,24.4]
[1746465199847,6.9057,144.83,144.8,6.9068]
[1746465200147,6.9057,144.83,144.78,24.4]
[1746465202045,4.67090841,144.82,144.78,24.4]
[1746465202246,4.67090841,144.81,144.78,24.4]
[1746465202545,6.9057,144.83,144.78,24.4]
[1746465203249,6.9057,144.83,144.81,6.9065]
[1746465203546,24.4,144.85,144.81,6.9065]
[1746465204141,6.906,144.83,144.81,6.9065]
[1746465205151,6.9054,144.84,144.81,6.9065]
[1746465205648,6.9058,144.83,144.81,6.9065]
[1746465206749,4.66623734,144.82,144.81,6.9065]
[1746465206947,6.9058,144.83,144.81,6.9065]
[1746465207353,6.9062,144.82,144.8,6.9068]
[1746465207950,6.9058,144.83,144.81,6.9066]
[1746465208747,6.9061,144.82,144.8,6.9068]
[1746465208946,4.66484316,144.81,144.8,6.9068]
[1746465209452,6.9059,144.83,144.8,6.9068]
[1746465209952,6.9059,144.83,144.81,6.9065]
[1746465210347,4.67030525,144.82,144.81,6.9065]
[1746465212152,11.57640525,144.82,144.8,6.9068]
[1746465212754,6.9068,144.81,144.79,6.9073]
[1746465213655,11.57670525,144.82,144.8,6.907]
[1746465213856,4.67030525,144.82,144.79,1.0]
[1746465214254,4.67030525,144.82,144.81,6.9066]
[1746465214953,4.67030525,144.82,144.8,6.9068]
[1746465215558,11.57650525,144.82,144.8,6.9068]
[1746465216556,4.67880204,144.81,144.8,6.9068]
[1746465216754,11.57650525,144.82,144.8,6.9068]
[1746465217055,4.67030525,144.82,144.79,1.0]
[1746465218053,11.58668257,144.81,144.79,7.9075]
[1746465218255,4.67988257,144.8,144.79,7.9075]
[1746465218649,6.9068,144.81,144.79,7.9075]
[1746465219351,4.6789076,144.8,144.79,7.9075]
[1746465220056,11.57660525,144.82,144.79,7.9075]
[1746465220761,4.67030525,144.82,144.79,1.0]
[1746465221257,6.9069,144.81,144.79,1.0]
[1746465221458,6.9069,144.81,144.79,7.9074]
[1746465221857,6.9069,144.81,144.79,1.0]
[1746465222358,6.9071,144.8,144.79,1.0]
[1746465231561,6.909,144.76,144.73,6.9102]
[1746465234961,6.9095,144.75,144.73,6.9102]
[1746465235559,6.9095,144.75,144.72,24.4]
[1746465235759,6.9092,144.76,144.72,24.4]
[1746465236165,6.9092,144.76,144.73,6.9101]
[1746465236462,6.9092,144.76,144.72,24.4]
[1746465237662,6.9092,144.76,144.73,6.9103]
[1746465237963,6.9092,144.76,144.72,24.4]
[1746465238863,6.9092,144.76,144.74,6.9098]
[1746465239064,24.4,144.79,144.72,24.4]
[1746465239065,6.9087,144.77,144.72,24.4]
[1746465239363,24.4,144.79,144.74,6.9097]
[1746465240063,6.9089,144.77,144.74,6.9097]
[1746465240365,24.4,144.79,144.74,6.9097]
[1746465240562,6.9088,144.77,144.74,6.9097]
[1746465241064,24.4,144.79,144.74,6.9097]
[1746465241260,6.9092,144.76,144.74,6.9097]
[1746465241564,24.4,144.79,144.73,6.9101]
[1746465241764,6.9098,144.75,144.72,24.4]
[1746465242260,24.4,144.79,144.72,24.4]
[1746465242765,6.9097,144.75,144.72,31.3105]
[1746465243454,6.9099,144.74,144.72,31.3105]
[1746465243673,6.9099,144.74,144.72,6.9105]
[1746465244359,6.9097,144.75,144.72,6.9105]
[1746465244564,6.9097,144.75,144.71,2.1206]
[1746465244967,6.9097,144.75,144.72,6.9108]
[1746465245267,6.91,144.74,144.72,6.9108]
[1746465246369,35.50270525,144.82,144.73,24.4]
[1746465247461,11.10270525,144.82,144.73,24.4]
[1746465247658,35.50270525,144.82,144.73,24.4]
[1746465247865,6.9078,144.79,144.76,6.9086]
[1746465248067,6.9078,144.79,144.73,24.4]
[1746465248566,6.9078,144.79,144.76,6.9087]
[1746465248770,6.9081,144.78,144.76,6.9087]
[1746465249670,6.9078,144.79,144.77,6.9084]
[1746465249871,6.9078,144.79,144.73,24.4]
[1746465250773,35.50270525,144.82,144.75,6.9091]
[1746465251872,6.9082,144.78,144.75,6.9091]
[1746465252172,35.50270525,144.82,144.75,6.9091]
[1746465252370,6.9085,144.77,144.75,6.9091]
[1746465252772,35.50270525,144.82,144.75,6.9091]
[1746465252967,6.9088,144.77,144.74,6.9097]
[1746465253168,11.63717049,144.81,144.74,6.9097]
[1746465253369,6.9098,144.75,144.73,24.4]
[1746465253571,6.9098,144.75,144.72,6.9107]
[1746465254676,36.03717049,144.78,144.71,9.0318]
[1746465254874,36.03717049,144.78,144.71,2.1206]
[1746465255173,6.9093,144.76,144.73,6.9102]
[1746465255571,36.03717049,144.78,144.73,6.9102]
[1746465256569,36.03717049,144.78,144.71,2.1206]
[1746465256770,24.4,144.78,144.71,2.1206]
[1746465256972,31.3081,144.78,144.71,2.1206]
[1746465257176,31.3081,144.78,144.75,6.9092]
[1746465257474,24.4,144.78,144.75,6.9092]
[1746465257667,6.9086,144.77,144.75,6.9092]
[1746465257971,6.9086,144.77,144.74,6.9097]
[1746465258973,6.9086,144.77,144.75,6.9094]
[1746465259173,31.3083,144.78,144.75,6.9094]
[1746465259475,24.4,144.78,144.75,6.9094]
[1746465260173,31.3083,144.78,144.75,6.9094]
[1746465260874,6.9085,144.77,144.75,6.9094]
[1746465261071,36.03717049,144.81,144.76,6.9089]
[1746465261574,6.9079,144.79,144.76,6.9089]
[1746465261774,36.03717049,144.81,144.76,6.9089]